bitfinex/quotes_BTCUSD_20240629
["timestamp","ask_amount","ask_price","bid_price","bid_amount"]
[1719633193636,0.1938,60880.0,60879.0,0.0298884]
[1719633193809,1.785149,60880.0,60879.0,0.0298884]
[1719633194549,1.785149,60880.0,60879.0,0.0308884]
[1719633194750,1.99982352,60880.0,60879.0,0.0308884]
[1719633195150,1.80281756,60880.0,60879.0,0.0308884]
[1719633195351,1.79853287,60880.0,60879.0,0.0328884]
[1719633196381,1.73273187,60880.0,60879.0,0.0328884]
[1719633197685,1.97602193,60880.0,60879.0,0.0328884]
[1719633198296,1.73273187,60880.0,60879.0,0.0328884]
[1719633198673,1.97600747,60880.0,60879.0,0.0328884]
[1719633198880,2.06654847,60880.0,60879.0,0.0328884]
[1719633199089,2.04180747,60880.0,60879.0,0.0328884]
[1719633200895,2.04180747,60880.0,60879.0,0.003]
[1719633201098,2.04180747,60880.0,60879.0,0.0328884]
[1719633201511,2.04180747,60880.0,60879.0,0.003]
[1719633201681,2.04180747,60880.0,60879.0,0.0328884]
[1719633201902,1.99980064,60880.0,60879.0,0.0328884]
[1719633202058,2.04181921,60880.0,60879.0,0.003]
[1719633202257,2.04175715,60880.0,60879.0,0.003]
[1719633202509,2.04175715,60880.0,60879.0,0.0328884]
[1719633202716,2.04175715,60880.0,60879.0,0.003]
[1719633203958,2.04175715,60880.0,60879.0,0.0328884]
[1719633204960,1.756504,60880.0,60879.0,0.0328884]
[1719633205160,2.04191705,60880.0,60879.0,0.003]
[1719633205563,1.00374505,60880.0,60879.0,0.1310884]
[1719633205791,1.09754505,60880.0,60879.0,0.13104146]
[1719633208313,1.09719914,60880.0,60879.0,0.13104146]
[1719633210630,1.09719914,60880.0,60879.0,0.13196546]
[1719633211570,1.09747009,60880.0,60879.0,0.13196546]
[1719633211973,1.05546382,60880.0,60879.0,0.13196546]
[1719633212183,1.09747009,60880.0,60879.0,0.13196546]
[1719633213058,1.09739348,60880.0,60879.0,0.13196546]
[1719633213654,1.09739348,60880.0,60879.0,0.03376546]
[1719633214073,0.85406166,60880.0,60879.0,0.03376546]
[1719633214612,0.81205539,60880.0,60879.0,0.03376546]
[1719633214819,0.8539692,60880.0,60879.0,0.03376546]
[1719633215666,0.8539282,60880.0,60879.0,0.03376546]
[1719633216056,0.8539282,60880.0,60879.0,0.00387706]
[1719633216255,0.8539282,60880.0,60879.0,0.01376546]
[1719633216813,0.8539282,60880.0,60879.0,0.03376546]
[1719633216950,0.8539282,60880.0,60879.0,0.00387706]
[1719633217345,0.8539282,60880.0,60879.0,0.01376546]
[1719633217990,0.81205539,60880.0,60879.0,0.01376546]
[1719633218231,0.85390594,60880.0,60879.0,0.01376546]
[1719633219010,0.85390594,60880.0,60879.0,0.03376546]
[1719633219241,0.85390594,60880.0,60879.0,0.01376546]
[1719633221398,0.85394718,60880.0,60879.0,0.01376546]
[1719633221676,0.81205539,60880.0,60879.0,0.03376546]
[1719633221969,0.81205539,60880.0,60879.0,0.00387706]
[1719633221970,0.85394665,60880.0,60879.0,0.00387706]
[1719633224553,0.85393778,60880.0,60879.0,0.00387706]
[1719633227523,0.81205539,60880.0,60879.0,0.00387706]
[1719633227734,0.85393146,60880.0,60879.0,0.00387706]
[1719633227932,0.85393146,60880.0,60879.0,0.03376546]
[1719633228169,0.85393146,60880.0,60879.0,0.09727706]
[1719633228911,0.43542846,60880.0,60879.0,0.09727706]
[1719633229111,0.29975239,60880.0,60879.0,0.21246546]
[1719633229484,0.29975239,60880.0,60879.0,0.20246546]
[1719633229689,0.29975239,60880.0,60879.0,0.20046546]
[1719633229897,0.29975239,60880.0,60879.0,0.1995124]
[1719633230099,0.29975239,60880.0,60879.0,0.2015124]
[1719633230301,0.29975239,60880.0,60879.0,0.2005124]
[1719633230719,0.39455239,60880.0,60879.0,0.2035124]
[1719633231113,0.39455239,60880.0,60879.0,0.2075124]
[1719633231114,0.39555239,60880.0,60879.0,0.2075124]
[1719633233021,0.39555239,60880.0,60879.0,0.2175124]
[1719633233264,0.39555239,60880.0,60879.0,0.2075124]
[1719633235738,0.39555239,60880.0,60879.0,0.2175124]
[1719633236156,0.23450653,60880.0,60879.0,0.2175124]
[1719633236351,0.3406,60880.0,60879.0,0.2175124]
[1719633241215,0.102,60880.0,60879.0,0.40160262]
[1719633241410,0.002,60880.0,60879.0,0.40160262]
[1719633241618,0.002,60880.0,60879.0,0.60160262]
[1719633241819,0.002,60880.0,60879.0,0.40160262]
[1719633242235,0.001,60880.0,60879.0,0.39760262]
[1719633242444,0.0938,60891.0,60890.0,0.01]
[1719633242600,0.0938,60891.0,60890.0,0.0298884]
[1719633242798,1.141558,60891.0,60890.0,0.0298884]
[1719633243004,1.28279285,60891.0,60890.0,0.0298884]
[1719633244030,1.28379285,60891.0,60890.0,0.0358884]
[1719633244527,1.27979285,60891.0,60890.0,0.0438884]
[1719633244933,1.13509585,60891.0,60890.0,0.0438884]
[1719633245132,0.34030885,60891.0,60890.0,0.06614724]
[1719633245334,0.34030885,60891.0,60890.0,0.19859782]
[1719633245335,0.32233485,60891.0,60890.0,0.19859782]
[1719633245550,0.3749,60891.0,60890.0,0.22848622]
[1719633245795,0.3749,60891.0,60890.0,0.37452738]
[1719633252101,0.3749,60891.0,60890.0,0.34463898]
[1719633252306,0.3749,60891.0,60890.0,0.37452738]
[1719633256365,0.09346695,60891.0,60890.0,0.37452738]
[1719633256569,0.95738095,60891.0,60890.0,0.37452738]
[1719633257125,0.99912703,60891.0,60890.0,0.37452738]
[1719633257676,0.79314081,60891.0,60890.0,0.37452738]
[1719633258482,0.23554608,60891.0,60890.0,0.37452738]
[1719633258684,1.25635408,60891.0,60890.0,0.37452738]
[1719633258995,1.2563045,60891.0,60890.0,0.37452738]
[1719633260008,1.2563045,60891.0,60890.0,0.014]
[1719633260220,1.2563045,60891.0,60890.0,0.0238884]
[1719633260430,1.2563045,60891.0,60890.0,0.0438884]
[1719633262666,1.25631158,60891.0,60890.0,0.0438884]
[1719633264544,1.25630569,60891.0,60890.0,0.0438884]
[1719633265298,1.214608,60891.0,60890.0,0.0438884]
[1719633265501,1.214608,60891.0,60890.0,0.0238884]
[1719633265502,1.25631376,60891.0,60890.0,0.0238884]
[1719633265697,1.25631376,60891.0,60890.0,0.014]
[1719633271675,1.214608,60891.0,60890.0,0.014]
[1719633271879,1.25667453,60891.0,60890.0,0.01393303]
[1719633272743,1.25580284,60891.0,60890.0,0.01393303]
[1719633272952,1.25667453,60891.0,60890.0,0.01393303]
[1719633273534,1.49953117,60891.0,60890.0,0.01393303]
[1719633274740,1.49953117,60891.0,60890.0,0.01485703]
[1719633274962,1.25667453,60891.0,60890.0,0.01485703]
[1719633275180,1.50045112,60891.0,60890.0,0.01485703]
[1719633275904,1.50038916,60891.0,60890.0,0.01485703]
[1719633278500,1.50041511,60891.0,60890.0,0.01485703]
[1719633281337,1.25744606,60891.0,60890.0,0.01485703]
[1719633281739,1.25744273,60891.0,60890.0,0.01485703]
[1719633282158,1.2574218,60891.0,60890.0,0.01485703]
[1719633284757,1.215448,60891.0,60890.0,0.01485703]
[1719633284973,1.25742434,60891.0,60890.0,0.01485703]
[1719633286775,0.95291268,60891.0,60890.0,0.01485703]
[1719633286982,1.05291268,60891.0,60890.0,0.01485703]
[1719633291775,1.05291245,60891.0,60890.0,0.01485703]
[1719633293559,1.05271479,60891.0,60890.0,0.01485703]
[1719633294416,1.01073868,60891.0,60890.0,0.01485703]
[1719633294758,1.05270884,60891.0,60890.0,0.01485703]
[1719633295247,1.13405257,60891.0,60890.0,0.01485703]
[1719633296189,1.13405257,60891.0,60890.0,0.00685703]
[1719633296392,1.13405257,60891.0,60890.0,0.001924]
[1719633296595,1.13405257,60891.0,60890.0,0.002924]
[1719633296808,1.13405257,60891.0,60890.0,0.001924]
[1719633297034,1.13405257,60891.0,60890.0,0.000924]
[1719633297234,1.14005257,60891.0,60890.0,0.002924]
[1719633297473,1.14605257,60891.0,60890.0,0.002924]
[1719633297688,1.14658167,60891.0,60890.0,0.002924]
[1719633300806,1.14658426,60891.0,60890.0,0.002924]
[1719633301268,1.14654295,60891.0,60890.0,0.002924]
[1719633303536,1.14651762,60891.0,60890.0,0.002924]
[1719633303738,1.06517389,60891.0,60890.0,0.002924]
[1719633306023,0.8082732,60891.0,60890.0,0.002924]
[1719633306624,0.76583799,60891.0,60890.0,0.002924]
[1719633306830,0.80837182,60891.0,60890.0,0.002924]
[1719633309779,0.8082933,60891.0,60890.0,0.002924]
[1719633312991,0.76583799,60891.0,60890.0,0.002924]
[1719633313188,0.80830131,60891.0,60890.0,0.002924]
[1719633313399,0.80830193,60891.0,60890.0,0.002924]
[1719633316127,0.80828122,60891.0,60890.0,0.002924]
[1719633319405,0.80821408,60891.0,60890.0,0.002924]
[1719633321188,0.80821408,60891.0,60890.0,0.0028471]
[1719633322634,0.80815032,60891.0,60890.0,0.0028471]
[1719633323053,0.76583799,60891.0,60890.0,0.0028471]
[1719633323245,0.80815031,60891.0,60890.0,0.0028471]
[1719633325808,0.20664,60891.0,60890.0,0.0028471]
[1719633326008,0.24894906,60891.0,60890.0,0.0028471]
[1719633326180,4.34079806,60891.0,60890.0,0.0028471]
[1719633327978,4.44301779,60891.0,60890.0,0.0028471]
[1719633329159,4.44304855,60891.0,60890.0,0.0028471]
[1719633332322,4.44303566,60891.0,60890.0,0.0028471]
[1719633335111,4.44310978,60891.0,60890.0,0.0028471]
[1719633335337,4.298489,60891.0,60890.0,0.002794]
[1719633335536,4.44302662,60891.0,60890.0,0.002794]
[1719633336136,4.44302661,60891.0,60890.0,0.002794]
[1719633338179,4.5663095,60891.0,60890.0,0.002794]
[1719633338336,4.5663095,60891.0,60890.0,0.100294]
[1719633338745,4.56628171,60891.0,60890.0,0.100294]
[1719633339761,4.56628171,60891.0,60890.0,0.10011476]
[1719633340712,4.80815645,60891.0,60890.0,0.10011476]
[1719633341089,4.80815645,60891.0,60890.0,0.17661476]
[1719633342065,4.66359609,60891.0,60890.0,0.17661476]
[1719633342238,4.45256644,60891.0,60890.0,0.17661476]
[1719633342517,4.45237757,60891.0,60890.0,0.17661476]
[1719633342710,4.32914522,60891.0,60890.0,0.17661476]
[1719633345223,4.32899176,60891.0,60890.0,0.17661476]
[1719633345377,4.32906932,60891.0,60890.0,0.17661476]
[1719633346624,4.44303332,60891.0,60890.0,0.17661476]
[1719633348412,4.44293824,60891.0,60890.0,0.17661476]
[1719633351547,4.298489,60891.0,60890.0,0.17661476]
[1719633351780,4.44293466,60891.0,60890.0,0.17661476]
[1719633351944,4.298489,60891.0,60890.0,0.17661476]
[1719633352111,4.44293462,60891.0,60890.0,0.17661476]
[1719633354477,4.21025062,60891.0,60890.0,0.17661476]
[1719633354681,4.065805,60891.0,60890.0,0.17661476]
[1719633354872,4.21021435,60891.0,60890.0,0.17661476]
[1719633355275,4.21021435,60891.0,60890.0,0.20650316]
[1719633355276,3.10879835,60891.0,60890.0,0.20650316]
[1719633355542,1.17536335,60891.0,60890.0,0.20650316]
[1719633356893,1.07319921,60891.0,60890.0,0.20650316]
[1719633357321,1.31631878,60891.0,60890.0,0.20650316]
[1719633357898,1.31631879,60891.0,60890.0,0.20650316]
[1719633358103,1.31572168,60891.0,60890.0,0.20650316]
[1719633360937,1.31565509,60891.0,60890.0,0.20650316]
[1719633361349,1.07259269,60891.0,60890.0,0.20650316]
[1719633361551,1.31565283,60891.0,60890.0,0.20650316]
[1719633361762,1.57290583,60891.0,60890.0,0.20650316]
[1719633362139,1.32984569,60891.0,60890.0,0.20650316]
[1719633362358,1.32766645,60891.0,60890.0,0.20650316]
[1719633362723,1.24859545,60891.0,60890.0,0.20650316]
[1719633363735,1.24899845,60891.0,60890.0,0.20650316]
[1719633365162,0.92822645,60891.0,60890.0,0.22715348]
[1719633365518,0.92822645,60891.0,60890.0,0.20650316]
[1719633366909,0.88618476,60891.0,60890.0,0.20650316]
[1719633367067,0.92826591,60891.0,60890.0,0.20650316]
[1719633368055,0.92826591,60891.0,60890.0,0.17661476]
[1719633368256,0.92826591,60891.0,60890.0,0.00261476]
[1719633370093,0.88618476,60891.0,60890.0,0.00261476]
[1719633370304,0.9286153,60891.0,60890.0,0.00261476]
[1719633372405,0.9294553,60891.0,60890.0,0.00261476]
[1719633372614,1.02248483,60891.0,60890.0,0.00261476]
[1719633373234,1.02241998,60891.0,60890.0,0.00261476]
[1719633374570,4.43254498,60891.0,60890.0,0.00261476]
[1719633375238,4.53480526,60891.0,60890.0,0.00261476]
[1719633375442,4.44177573,60891.0,60890.0,0.00257256]
[1719633376459,4.44168637,60891.0,60890.0,0.00257256]
[1719633379607,4.29714976,60891.0,60890.0,0.00257256]
[1719633379809,4.44181444,60891.0,60890.0,0.00257256]
[1719633381199,4.60414815,60891.0,60890.0,0.00257256]
[1719633382926,4.70656632,60891.0,60890.0,0.00257256]
[1719633383822,4.82521387,60891.0,60890.0,0.00257256]
[1719633385199,4.66288016,60891.0,60890.0,0.00257256]
[1719633385833,4.54423261,60891.0,60890.0,0.00257256]
[1719633386168,4.39947075,60891.0,60890.0,0.00257256]
[1719633386500,4.54417274,60891.0,60890.0,0.00257256]
[1719633386645,4.54417646,60891.0,60890.0,0.00257256]
[1719633387855,4.54417646,60891.0,60890.0,0.00252121]
[1719633389296,4.39947075,60891.0,60890.0,0.00252121]
[1719633389503,4.54461665,60891.0,60890.0,0.00252121]
[1719633391362,4.36614851,60891.0,60890.0,0.00252121]
[1719633391559,4.36614889,60891.0,60890.0,0.00252121]
[1719633391763,4.2638279,60891.0,60890.0,0.00252121]
[1719633392414,4.118682,60891.0,60890.0,0.00252121]
[1719633392685,4.26369219,60891.0,60890.0,0.00252121]
[1719633393450,4.36369219,60891.0,60890.0,0.00252121]
[1719633394405,4.36369219,60891.0,60890.0,0.10362121]
[1719633395803,4.36372666,60891.0,60890.0,0.10362121]
[1719633396191,4.218682,60891.0,60890.0,0.10362121]
[1719633396397,4.36376103,60891.0,60890.0,0.10362121]
[1719633399296,4.218682,60891.0,60890.0,0.10362121]
[1719633399572,4.36371131,60891.0,60890.0,0.10362121]
[1719633402508,4.26127003,60891.0,60890.0,0.10362121]
[1719633402763,4.36371123,60891.0,60890.0,0.10362121]
[1719633403537,4.36371123,60891.0,60890.0,0.10354151]
[1719633405018,4.36455123,60891.0,60890.0,0.10354151]
[1719633405654,4.219522,60891.0,60890.0,0.10354151]
[1719633405854,4.36455126,60891.0,60890.0,0.10354151]
[1719633409154,4.36459785,60891.0,60890.0,0.10354151]
[1719633409602,4.219522,60891.0,60890.0,0.10354151]
[1719633409808,4.36459701,60891.0,60890.0,0.10354151]
[1719633410400,4.36459701,60891.0,60890.0,0.17744151]
[1719633410904,4.36459701,60891.0,60890.0,0.18732991]
[1719633412434,4.36455512,60891.0,60890.0,0.18732991]
[1719633413996,4.39457961,60891.0,60890.0,0.18732991]
[1719633414213,4.39457961,60891.0,60890.0,0.17744151]
[1719633414421,4.39457961,60891.0,60890.0,0.18732991]
[1719633414652,4.39457961,60891.0,60890.0,0.17744151]
[1719633414976,4.39457961,60891.0,60890.0,0.18732991]
[1719633417654,4.39457961,60891.0,60890.0,0.18728635]
[1719633418621,4.24954649,60891.0,60890.0,0.18728635]
[1719633418827,4.39457576,60891.0,60890.0,0.18728635]
[1719633419028,4.24954649,60891.0,60890.0,0.18728635]
[1719633419235,4.39458975,60891.0,60890.0,0.18728635]
[1719633421435,4.39467203,60891.0,60890.0,0.18728635]
[1719633424407,4.24954649,60891.0,60890.0,0.18728635]
[1719633424610,4.39467982,60891.0,60890.0,0.18728635]
[1719633426672,4.39467982,60891.0,60890.0,0.17739795]
[1719633427684,4.39467982,60891.0,60890.0,0.00239795]
[1719633429315,0.36979782,60891.0,60890.0,0.00239795]
[1719633429514,4.39467982,60891.0,60890.0,0.00239795]
[1719633430141,4.39467982,60891.0,60890.0,0.00231827]
[1719633430951,4.24954649,60891.0,60890.0,0.00231827]
[1719633431181,4.3946708,60891.0,60890.0,0.00231827]
[1719633431331,4.39471295,60891.0,60890.0,0.00231827]
[1719633434082,4.39462396,60891.0,60890.0,0.00231827]
[1719633435452,4.45657298,60891.0,60890.0,0.00231827]
[1719633437255,4.31149551,60891.0,60890.0,0.00231827]
[1719633437456,4.45675518,60891.0,60890.0,0.00231827]
[1719633437870,4.57580607,60891.0,60890.0,0.00231827]
[1719633439727,4.42791556,60891.0,60890.0,0.00231827]
[1719633439960,4.42791781,60891.0,60890.0,0.00231827]
[1719633440493,4.163605,60891.0,60890.0,0.00231827]
[1719633440698,4.3090114,60891.0,60890.0,0.00231827]
[1719633441110,4.58106843,60891.0,60890.0,0.00231827]
[1719633441312,4.39560713,60891.0,60890.0,0.00231827]
[1719633442035,4.75794611,60891.0,60890.0,0.00231827]
[1719633442662,4.75794611,60891.0,60890.0,0.00131827]
[1719633442865,4.887997,60891.0,60890.0,0.00231827]
[1719633443324,5.05033071,60891.0,60890.0,0.00131827]
[1719633443538,5.03933071,60891.0,60890.0,0.00031827]
[1719633443755,5.25244231,60891.0,60890.0,0.00231827]
[1719633443930,5.25244231,60891.0,60890.0,0.00131827]
[1719633443931,5.25264296,60891.0,60890.0,0.00131827]
[1719633444268,5.21662684,60891.0,60890.0,0.00231827]
[1719633444440,5.26564309,60891.0,60890.0,0.00231827]
[1719633445084,5.26564309,60891.0,60879.0,0.076724]
[1719633445085,0.2,60881.0,60879.0,0.000924]
[1719633445285,4.163605,60880.0,60879.0,0.000924]
[1719633445692,4.21262125,60880.0,60879.0,0.000924]
[1719633446069,4.32021218,60880.0,60879.0,0.000924]
[1719633446792,4.163605,60880.0,60879.0,0.000924]
[1719633446992,4.32026303,60880.0,60879.0,0.000924]
[1719633447193,4.68260201,60880.0,60879.0,0.000924]
[1719633447427,4.69360201,60880.0,60879.0,0.000924]
[1719633447759,4.8246529,60880.0,60879.0,0.000924]
[1719633450094,4.82469095,60880.0,60879.0,0.000924]
[1719633453315,4.66799487,60880.0,60879.0,0.000924]
[1719633453520,4.82468043,60880.0,60879.0,0.000924]
[1719633453868,4.50477505,60880.0,60879.0,0.000924]
[1719633454019,4.60477543,60880.0,60879.0,0.000924]
[1719633454543,4.48572454,60880.0,60879.0,0.000924]
[1719633455516,4.5150205,60880.0,60879.0,0.000924]
[1719633455924,4.53945996,60880.0,60879.0,0.000924]
[1719633456550,4.3827744,60880.0,60879.0,0.000924]
[1719633456755,4.53944639,60880.0,60879.0,0.000924]
[1719633457300,4.69611943,60880.0,60879.0,0.000924]
[1719633458514,4.81517032,60880.0,60879.0,0.000924]
[1719633459100,4.53483657,60880.0,60879.0,0.000924]
[1719633459302,4.53483657,60880.0,60876.0,0.097424]
[1719633459506,0.0938,60877.0,60876.0,0.097424]
[1719633459684,3.8437,60877.0,60876.0,0.097424]
[1719633459888,3.9437,60877.0,60876.0,0.097424]
[1719633461000,3.9517,60877.0,60876.0,0.097424]
[1719633462543,3.9597,60877.0,60876.0,0.097424]
[1719633466663,4.00863391,60877.0,60876.0,0.097424]
[1719633468988,4.00863391,60877.0,60876.0,0.098348]
[1719633469224,4.10273319,60877.0,60876.0,0.098348]
[1719633470118,4.21024213,60877.0,60876.0,0.098348]
[1719633471161,4.11614285,60877.0,60876.0,0.098348]
[1719633472153,4.00863192,60877.0,60876.0,0.098348]
[1719633473773,3.9597,60877.0,60876.0,0.098348]
[1719633473997,4.00860529,60877.0,60876.0,0.098348]
[1719633476542,3.9597,60877.0,60876.0,0.098348]
[1719633476696,4.00867534,60877.0,60876.0,0.098348]
[1719633476899,4.00867534,60877.0,60876.0,0.09829643]
[1719633479996,4.00873467,60877.0,60876.0,0.09829643]
[1719633480906,4.00873467,60877.0,60876.0,0.17599643]
[1719633481857,4.25150594,60877.0,60876.0,0.17599643]
[1719633482053,4.11632881,60877.0,60876.0,0.17599643]
[1719633482502,4.35912542,60877.0,60876.0,0.18588483]
[1719633482885,3.549525,60877.0,60876.0,0.17599643]
[1719633483053,3.70592529,60877.0,60876.0,0.17599643]
[1719633483431,3.64094474,60877.0,60876.0,0.17599643]
[1719633483630,3.28475429,60877.0,60876.0,0.17599643]
[1719633483840,3.02959629,60877.0,60876.0,0.18588483]
[1719633484023,2.75460829,60877.0,60876.0,0.20588483]
[1719633484223,2.75460829,60877.0,60876.0,0.18588483]
[1719633484423,2.66080829,60877.0,60876.0,0.20588483]
[1719633484647,2.22149629,60877.0,60876.0,0.20588483]
[1719633484850,2.20780247,60877.0,60876.0,0.20588483]
[1719633485247,2.40170565,60877.0,60876.0,0.20588483]
[1719633485444,2.258896,60877.0,60876.0,0.20588483]
[1719633485649,2.30790302,60877.0,60876.0,0.20588483]
[1719633485939,2.30790302,60877.0,60876.0,0.17599643]
[1719633486311,2.55086683,60877.0,60876.0,0.18588483]
[1719633487385,2.30790302,60877.0,60876.0,0.18588483]
[1719633488516,2.30790302,60877.0,60876.0,0.17599643]
[1719633488741,2.30786454,60877.0,60876.0,0.18588483]
[1719633488916,2.30786454,60877.0,60876.0,0.17599643]
[1719633490233,2.30786454,60877.0,60876.0,0.18588483]
[1719633492066,2.30771831,60877.0,60876.0,0.18588483]
[1719633492716,2.30771831,60877.0,60876.0,0.17599643]
[1719633492931,2.30771831,60877.0,60876.0,0.18588483]
[1719633494900,2.30771831,60877.0,60876.0,0.17599643]
[1719633495107,2.258896,60877.0,60876.0,0.17599643]
[1719633495305,2.30774276,60877.0,60876.0,0.17599643]
[1719633496285,2.30774276,60877.0,60876.0,0.17592657]
[1719633497305,2.55078626,60877.0,60876.0,0.17592657]
[1719633499447,2.55078626,60877.0,60876.0,0.18581497]
[1719633499812,2.55078626,60877.0,60876.0,0.17592657]
[1719633500008,2.55078626,60877.0,60876.0,0.18581497]
[1719633500866,2.55078626,60877.0,60876.0,0.17592657]
[1719633501741,0.48580188,60877.0,60876.0,0.17592657]
[1719633502139,0.48580188,60877.0,60876.0,0.18581497]
[1719633502312,2.56365588,60877.0,60876.0,0.18581497]
[1719633502723,2.55164088,60877.0,60876.0,0.20581497]
[1719633502939,2.48584088,60877.0,60876.0,0.20581497]
[1719633503455,2.45442988,60877.0,60876.0,0.20581497]
[1719633503874,2.45526988,60877.0,60876.0,0.20581497]
[1719633504956,2.45526741,60877.0,60876.0,0.20581497]
[1719633505335,2.45537923,60877.0,60876.0,0.20581497]
[1719633505616,2.44445023,60877.0,60876.0,0.20581497]
[1719633507135,2.44445023,60877.0,60876.0,0.17592657]
[1719633507584,2.44445023,60877.0,60876.0,0.18581497]
[1719633507734,2.44445023,60877.0,60876.0,0.17592657]
[1719633508145,2.44434258,60877.0,60876.0,0.17592657]
[1719633509633,2.44434258,60877.0,60876.0,0.18581497]
[1719633511316,2.44436903,60877.0,60876.0,0.18581497]
[1719633512964,2.44436903,60877.0,60876.0,0.17592657]
[1719633514134,2.44436903,60877.0,60876.0,0.18581497]
[1719633515074,2.20132781,60877.0,60876.0,0.18581497]
[1719633517921,2.20135974,60877.0,60876.0,0.18581497]
[1719633518324,2.2013591,60877.0,60876.0,0.18581497]
[1719633518849,0.2436601,60877.0,60876.0,0.18581497]
[1719633519481,2.9389811,60877.0,60876.0,0.18581497]
[1719633519761,0.19464,60877.0,60876.0,0.18581497]
[1719633519951,2.889961,60877.0,60876.0,0.18581497]
[1719633520641,2.889961,60877.0,60876.0,0.17592657]
[1719633520816,2.92000404,60877.0,60876.0,0.17592657]
[1719633521036,2.96871016,60877.0,60876.0,0.17592657]
[1719633522594,2.96869157,60877.0,60876.0,0.17592657]
[1719633524364,2.92000404,60877.0,60876.0,0.17592657]
[1719633524551,2.96830923,60877.0,60876.0,0.17592657]
[1719633525147,2.99301778,60877.0,60876.0,0.17592657]
[1719633525558,2.99301778,60877.0,60876.0,0.078624]
[1719633525559,2.89921778,60877.0,60876.0,0.078624]
[1719633525774,2.89921778,60877.0,60876.0,0.36625775]
[1719633525775,0.94062161,60877.0,60876.0,0.36625775]
[1719633526091,0.69731274,60877.0,60876.0,0.39614615]
[1719633527534,0.65600755,60877.0,60876.0,0.39614615]
[1719633527739,0.70423515,60877.0,60876.0,0.39614615]
[1719633527943,0.69723646,60877.0,60876.0,0.39614615]
[1719633528252,0.69923646,60877.0,60876.0,0.39614615]
[1719633530299,0.69919618,60877.0,60876.0,0.39614615]
[1719633530479,0.69929414,60877.0,60876.0,0.39614615]
[1719633530901,0.69929737,60877.0,60876.0,0.39614615]
[1719633532226,0.94255245,60877.0,60876.0,0.39614615]
[1719633532428,0.94255245,60877.0,60876.0,0.36625775]
[1719633532626,0.94255245,60877.0,60876.0,0.39614615]
[1719633533233,0.69929737,60877.0,60876.0,0.39614615]
[1719633533608,0.94255245,60877.0,60876.0,0.39614615]
[1719633534184,0.89421424,60877.0,60876.0,0.39614615]
[1719633534310,0.69946029,60877.0,60876.0,0.39614615]
[1719633534892,0.69846029,60877.0,60876.0,0.39614615]
[1719633535421,2.20071229,60877.0,60876.0,0.39614615]
[1719633536026,1.92071229,60877.0,60876.0,0.39614615]
[1719633537240,1.92069437,60877.0,60876.0,0.39614615]
[1719633537861,1.36019737,60877.0,60876.0,0.39614615]
[1719633539705,1.06626546,60877.0,60876.0,0.39614615]
[1719633539932,0.805447,60877.0,60876.0,0.39614615]
[1719633540462,0.542184,60877.0,60876.0,0.39614615]
[1719633540681,0.598484,60877.0,60876.0,0.36625775]
[1719633540857,0.6229115,60877.0,60876.0,0.39614615]
[1719633541435,0.5361765,60877.0,60876.0,0.39614615]
[1719633541647,0.5170115,60877.0,60876.0,0.39614615]
[1719633541847,0.6170115,60877.0,60876.0,0.39614615]
[1719633543026,0.3111995,60877.0,60876.0,0.39614615]
[1719633543256,0.4049995,60877.0,60876.0,0.39614615]
[1719633545750,0.4049995,60877.0,60876.0,0.44507591]
[1719633546756,0.4049995,60877.0,60876.0,0.39614615]
[1719633555573,0.1612545,60877.0,60876.0,0.39614615]
[1719633555770,0.00084,60880.0,60876.0,0.39614615]
[1719633555771,0.00084,60880.0,60879.0,0.20259477]
[1719633556015,0.00084,60880.0,60879.0,0.40810689]
[1719633556809,0.00084,60880.0,60879.0,0.40482215]
[1719633557737,0.00184,60880.0,60879.0,0.45352711]
[1719633558148,0.00184,60880.0,60879.0,0.45752711]
[1719633558536,0.00184,60880.0,60879.0,0.45352711]
[1719633558702,0.00284,60880.0,60879.0,0.46052711]
[1719633559338,0.00284,60880.0,60879.0,0.45052711]
[1719633570246,0.00284,60880.0,60879.0,0.40182215]
[1719633570451,0.82662,60880.0,60879.0,0.40182215]
[1719633570718,0.82662,60880.0,60879.0,0.22342215]
[1719633570719,0.92662,60880.0,60879.0,0.22342215]
[1719633571388,0.97002232,60880.0,60879.0,0.22342215]
[1719633571969,0.97048729,60880.0,60879.0,0.22342215]
[1719633572468,0.97048729,60880.0,60879.0,0.20342215]
[1719633572656,0.97048729,60880.0,60879.0,0.22342215]
[1719633574861,0.97048729,60880.0,60879.0,0.19353375]
[1719633575072,0.97048729,60880.0,60879.0,0.22342215]
[1719633575202,0.92662,60880.0,60879.0,0.22342215]
[1719633575403,0.97013525,60880.0,60879.0,0.22342215]
[1719633575606,0.97016736,60880.0,60879.0,0.22342215]
[1719633577867,0.97016736,60880.0,60879.0,0.19353375]
[1719633578070,0.97016736,60880.0,60879.0,0.22342215]
[1719633578320,0.97036214,60880.0,60879.0,0.22342215]
[1719633578447,0.97036212,60880.0,60879.0,0.22342215]
[1719633581430,0.97037952,60880.0,60879.0,0.22342215]
[1719633582894,0.9703019,60880.0,60879.0,0.22342215]
[1719633583066,0.71750786,60880.0,60879.0,0.22342215]
[1719633583854,1.4051329,60880.0,60879.0,0.22342215]
[1719633584073,1.7191449,60880.0,60879.0,0.22342215]
[1719633584808,1.395463,60880.0,60879.0,0.22342215]
[1719633584970,1.43919533,60880.0,60879.0,0.22342215]
[1719633585391,1.53919533,60880.0,60879.0,0.22342215]
[1719633587196,1.30460833,60880.0,60879.0,0.22342215]
[1719633588010,1.30464728,60880.0,60879.0,0.22342215]
[1719633588543,1.30464727,60880.0,60879.0,0.22342215]
[1719633591276,1.30463951,60880.0,60879.0,0.22342215]
[1719633591677,1.30463951,60880.0,60879.0,0.22362215]
[1719633594572,1.30460098,60880.0,60879.0,0.22362215]
[1719633599739,1.21069098,60880.0,60879.0,0.22362215]
[1719633600082,1.17469098,60880.0,60879.0,0.22362215]
[1719633600285,0.95090698,60880.0,60879.0,0.40212215]
[1719633600740,0.907182,60880.0,60879.0,0.40212215]
[1719633600944,0.95113463,60880.0,60879.0,0.40212215]
[1719633601144,0.619611,60880.0,60879.0,0.40212215]
[1719633601322,0.66356348,60880.0,60879.0,0.40212215]
[1719633601543,0.55833148,60880.0,60879.0,0.40212215]
[1719633601755,0.28810648,60880.0,60879.0,0.40212215]
[1719633601885,0.14395248,60880.0,60879.0,0.44351916]
[1719633602084,0.04395248,60880.0,60879.0,0.41304615]
[1719633602491,0.00084,60880.0,60879.0,0.41304615]
[1719633603337,0.14152,60880.0,60879.0,0.41304615]
[1719633603634,0.10084,60880.0,60879.0,0.41304615]
[1719633604411,0.00084,60880.0,60879.0,0.44453556]
[1719633604691,0.00084,60880.0,60879.0,0.45453556]
[1719633607742,0.00084,60880.0,60879.0,0.44453556]
[1719633608149,0.00084,60880.0,60879.0,0.45453556]
[1719633609464,0.00084,60880.0,60879.0,0.44453556]
[1719633609671,0.00084,60880.0,60879.0,0.45453556]
[1719633610101,0.00084,60880.0,60879.0,0.40304615]
[1719633610712,0.00084,60880.0,60879.0,0.41304615]